[Event "Titled Tuesday Blitz August 08 Early 2023"]
[White "Agibileg, Uurtsaikh"]
[Black "Castella Garcia, Fausto"]
[WhiteFideId "4901606"]
[BlackFideId "3501922"]
[WhiteElo "2701"]
[BlackElo "2388"]
[Result "1/2-1/2"]
[Round "2"]
[TimeControl "180+1"]
[Date "2023.08.08"]
[WhiteClock "0:00:07"]
[BlackClock "0:00:08"]
[Board "107"]

1. d4 {[%clk 0:03:00]}  Nf6 {[%clk 0:02:59]} 2. c4 {[%clk 0:03:00]}  e5 {[%clk 0:02:58]} 3. dxe5 {[%clk 0:02:58]}  Ng4 {[%clk 0:02:59]} 4. Nf3 {[%clk 0:02:57]}  Bc5 {[%clk 0:02:59]} 5. e3 {[%clk 0:02:54]}  Nc6 {[%clk 0:02:57]} 6. a3 {[%clk 0:02:52]}  a5 {[%clk 0:02:56]} 7. Nc3 {[%clk 0:02:52]}  O-O {[%clk 0:02:54]} 8. Na4 {[%clk 0:02:51]}  Ba7 {[%clk 0:02:45]} 9. Be2 {[%clk 0:02:48]}  Re8 {[%clk 0:02:44]} 10. O-O {[%clk 0:02:47]}  Ngxe5 {[%clk 0:02:43]} 11. c5 {[%clk 0:02:44]}  Nxf3+ {[%clk 0:02:39]} 12. Bxf3 {[%clk 0:02:45]}  Ne5 {[%clk 0:02:39]} 13. b4 {[%clk 0:02:40]}  Nxf3+ {[%clk 0:02:28]} 14. Qxf3 {[%clk 0:02:39]}  d6 {[%clk 0:02:26]} 15. Bb2 {[%clk 0:02:38]}  dxc5 {[%clk 0:02:12]} 16. Nxc5 {[%clk 0:02:37]}  Bxc5 {[%clk 0:02:03]} 17. bxc5 {[%clk 0:02:37]}  Qg5 {[%clk 0:01:58]} 18. Bd4 {[%clk 0:02:22]}  c6 {[%clk 0:01:52]} 19. Rfe1 {[%clk 0:02:16]}  Be6 {[%clk 0:01:44]} 20. h3 {[%clk 0:02:11]}  f5 {[%clk 0:01:34]} 21. e4 {[%clk 0:02:10]}  fxe4 {[%clk 0:01:31]} 22. Qxe4 {[%clk 0:02:01]}  Bd5 {[%clk 0:01:25]} 23. Qg4 {[%clk 0:01:50]}  Qxg4 {[%clk 0:01:22]} 24. hxg4 {[%clk 0:01:51]}  Kf7 {[%clk 0:01:03]} 25. Reb1 {[%clk 0:01:40]}  Re7 {[%clk 0:01:03]} 26. Rb2 {[%clk 0:01:40]}  Rae8 {[%clk 0:01:02]} 27. Kh2 {[%clk 0:01:40]}  Be4 {[%clk 0:00:51]} 28. f3 {[%clk 0:01:39]}  Bg6 {[%clk 0:00:51]} 29. Rc1 {[%clk 0:01:23]}  Ke6 {[%clk 0:00:42]} 30. Bf2 {[%clk 0:01:20]}  Kf7 {[%clk 0:00:35]} 31. Rc4 {[%clk 0:01:17]}  Kg8 {[%clk 0:00:31]} 32. Ra4 {[%clk 0:01:12]}  Re2 {[%clk 0:00:31]} 33. Rxe2 {[%clk 0:01:10]}  Rxe2 {[%clk 0:00:32]} 34. Kg3 {[%clk 0:01:08]}  Bd3 {[%clk 0:00:25]} 35. Rxa5 {[%clk 0:01:08]}  Bb5 {[%clk 0:00:26]} 36. Ra8+ {[%clk 0:01:04]}  Kf7 {[%clk 0:00:24]} 37. Rd8 {[%clk 0:01:00]}  Ke7 {[%clk 0:00:23]} 38. Rh8 {[%clk 0:00:58]}  h6 {[%clk 0:00:22]} 39. Bd4 {[%clk 0:00:58]}  Kf7 {[%clk 0:00:21]} 40. Rh7 {[%clk 0:00:58]}  Ra2 {[%clk 0:00:19]} 41. Rxg7+ {[%clk 0:00:57]}  Ke6 {[%clk 0:00:20]} 42. Rxb7 {[%clk 0:00:51]}  Bf1 {[%clk 0:00:20]} 43. Rh7 {[%clk 0:00:49]}  Rxg2+ {[%clk 0:00:19]} 44. Kf4 {[%clk 0:00:49]}  Rh2 {[%clk 0:00:19]} 45. Bg7 {[%clk 0:00:48]}  Kd5 {[%clk 0:00:15]} 46. Rxh6 {[%clk 0:00:46]}  Ra2 {[%clk 0:00:14]} 47. Bf8 {[%clk 0:00:44]}  Rxa3 {[%clk 0:00:14]} 48. Rd6+ {[%clk 0:00:36]}  Kc4 {[%clk 0:00:15]} 49. Re6 {[%clk 0:00:36]}  Bg2 {[%clk 0:00:13]} 50. Re3 {[%clk 0:00:37]}  Rxe3 {[%clk 0:00:11]} 51. Kxe3 {[%clk 0:00:38]}  Kd5 {[%clk 0:00:11]} 52. Kf2 {[%clk 0:00:35]}  Bh1 {[%clk 0:00:10]} 53. g5 {[%clk 0:00:30]}  Ke5 {[%clk 0:00:10]} 54. Kg3 {[%clk 0:00:18]}  Kf5 {[%clk 0:00:11]} 55. Be7 {[%clk 0:00:18]}  Ke6 {[%clk 0:00:10]} 56. Bd6 {[%clk 0:00:17]}  Kf5 {[%clk 0:00:10]} 57. Be7 {[%clk 0:00:17]}  Ke6 {[%clk 0:00:09]} 58. Bd8 {[%clk 0:00:17]}  Kf5 {[%clk 0:00:09]} 59. Bf6 {[%clk 0:00:16]}  Ke6 {[%clk 0:00:09]} 60. Kg4 {[%clk 0:00:15]}  Bg2 {[%clk 0:00:09]} 61. f4 {[%clk 0:00:15]}  Be4 {[%clk 0:00:10]} 62. Be5 {[%clk 0:00:12]}  Bf5+ {[%clk 0:00:10]} 63. Kh5 {[%clk 0:00:12]}  Kf7 {[%clk 0:00:10]} 64. Kh6 {[%clk 0:00:12]}  Bg6 {[%clk 0:00:10]} 65. Bd6 {[%clk 0:00:12]}  Bf5 {[%clk 0:00:10]} 66. Kh5 {[%clk 0:00:12]}  Bg6+ {[%clk 0:00:10]} 67. Kg4 {[%clk 0:00:13]}  Ke6 {[%clk 0:00:09]} 68. Kf3 {[%clk 0:00:13]}  Kf5 {[%clk 0:00:08]} 69. Ke3 {[%clk 0:00:13]}  Bf7 {[%clk 0:00:09]} 70. Kd4 {[%clk 0:00:13]}  Bd5 {[%clk 0:00:09]} 71. Kc3 {[%clk 0:00:13]}  Bg2 {[%clk 0:00:10]} 72. Kb4 {[%clk 0:00:13]}  Bf3 {[%clk 0:00:10]} 73. Ka5 {[%clk 0:00:14]}  Bg2 {[%clk 0:00:11]} 74. Kb6 {[%clk 0:00:15]}  Bf3 {[%clk 0:00:11]} 75. Kc7 {[%clk 0:00:15]}  Bg2 {[%clk 0:00:12]} 76. Kd7 {[%clk 0:00:16]}  Bf3 {[%clk 0:00:11]} 77. Ke7 {[%clk 0:00:14]}  Bd5 {[%clk 0:00:10]} 78. Be5 {[%clk 0:00:14]}  Bc4 {[%clk 0:00:08]} 79. Kf8 {[%clk 0:00:12]}  Kg6 {[%clk 0:00:07]} 80. Bf6 {[%clk 0:00:10]}  Be6 {[%clk 0:00:06]} 81. Be7 {[%clk 0:00:10]}  Bd5 {[%clk 0:00:05]} 82. Bd6 {[%clk 0:00:09]}  Be6 {[%clk 0:00:05]} 83. Ke7 {[%clk 0:00:09]}  Bd5 {[%clk 0:00:06]} 84. Kd7 {[%clk 0:00:09]}  Kf5 {[%clk 0:00:06]} 85. Be5 {[%clk 0:00:08]}  Bg2 {[%clk 0:00:06]} 86. Kd6 {[%clk 0:00:04]}  Bf3 {[%clk 0:00:05]} 87. Ke7 {[%clk 0:00:04]}  Bd5 {[%clk 0:00:05]} 88. Kf8 {[%clk 0:00:04]}  Kg6 {[%clk 0:00:05]} 89. Bf6 {[%clk 0:00:03]}  Be4 {[%clk 0:00:04]} 90. f5+ {[%clk 0:00:03]}  Bxf5 {[%clk 0:00:04]} 91. Ke7 {[%clk 0:00:03]}  Be4 {[%clk 0:00:05]} 92. Kd6 {[%clk 0:00:03]}  Bd5 {[%clk 0:00:05]} 93. Ke7 {[%clk 0:00:04]}  Bf3 {[%clk 0:00:06]} 94. Kd6 {[%clk 0:00:05]}  Bd5 {[%clk 0:00:06]} 95. Ke7 {[%clk 0:00:06]}  Bf3 {[%clk 0:00:07]} 96. Kd6 {[%clk 0:00:07]}  Bd5 {[%clk 0:00:08]} 1/2-1/2


[Site "https://www.chess.com"]

[Event "Titled Tuesday Blitz August 08 Early 2023"]
[White "Legenia, Artem"]
[Black "Csonka, Balazs"]
[WhiteFideId "14136945"]
[BlackFideId "742910"]
[WhiteElo "2384"]
[BlackElo "2699"]
[Result "0-1"]
[Round "2"]
[TimeControl "180+1"]
[Date "2023.08.08"]
[WhiteClock "0:02:08"]
[BlackClock "0:02:06"]
[Board "108"]

1. Nf3 {[%clk 0:02:58]}  Nf6 {[%clk 0:02:59]} 2. b3 {[%clk 0:02:53]}  b6 {[%clk 0:02:53]} 3. Bb2 {[%clk 0:02:54]}  Bb7 {[%clk 0:02:54]} 4. e3 {[%clk 0:02:54]}  g6 {[%clk 0:02:53]} 5. c4 {[%clk 0:02:55]}  Bg7 {[%clk 0:02:53]} 6. Be2 {[%clk 0:02:55]}  O-O {[%clk 0:02:54]} 7. d3 {[%clk 0:02:56]}  d6 {[%clk 0:02:54]} 8. O-O {[%clk 0:02:56]}  e5 {[%clk 0:02:54]} 9. a3 {[%clk 0:02:56]}  Nbd7 {[%clk 0:02:50]} 10. Nbd2 {[%clk 0:02:56]}  h6 {[%clk 0:02:44]} 11. Qc2 {[%clk 0:02:56]}  Nh7 {[%clk 0:02:44]} 12. d4 {[%clk 0:02:56]}  Qe7 {[%clk 0:02:43]} 13. Rfe1 {[%clk 0:02:52]}  e4 {[%clk 0:02:40]} 14. d5 {[%clk 0:02:19]}  exf3 {[%clk 0:02:36]} 15. Nxf3 {[%clk 0:02:17]}  Ng5 {[%clk 0:02:28]} 16. Nd4 {[%clk 0:02:15]}  a6 {[%clk 0:02:21]} 17. Bf1 {[%clk 0:02:15]}  Rae8 {[%clk 0:02:20]} 18. e4 {[%clk 0:02:14]}  Be5 {[%clk 0:02:06]} 19. g3 {[%clk 0:02:11]}  Bxd4 {[%clk 0:02:06]} 20. Bxd4 {[%clk 0:02:10]}  Nf3+ {[%clk 0:02:06]} 21. Kg2 {[%clk 0:02:08]}  Nxd4 {[%clk 0:02:06]} 0-1


[Site "https://www.chess.com"]

[Event "Titled Tuesday Blitz August 08 Early 2023"]
[White "Alex_Sahakyan2006"]
[Black "dr_tatiana"]
[WhiteElo "2694"]
[BlackElo "2355"]
[Result "1-0"]
[Round "2"]
[TimeControl "180+1"]
[Date "2023.08.08"]
[WhiteClock "0:00:14"]
[BlackClock "0:00:06"]
[Board "110"]

1. e4 {[%clk 0:03:00]}  d5 {[%clk 0:02:57]} 2. exd5 {[%clk 0:02:59]}  Qxd5 {[%clk 0:02:58]} 3. Nc3 {[%clk 0:02:59]}  Qd6 {[%clk 0:02:58]} 4. d4 {[%clk 0:02:53]}  Nf6 {[%clk 0:02:55]} 5. Nf3 {[%clk 0:02:51]}  a6 {[%clk 0:02:55]} 6. Ne5 {[%clk 0:02:48]}  Nc6 {[%clk 0:02:49]} 7. Bf4 {[%clk 0:02:27]}  Nd5 {[%clk 0:01:19]} 8. Bg3 {[%clk 0:01:49]}  Nxc3 {[%clk 0:01:15]} 9. bxc3 {[%clk 0:01:47]}  Nxe5 {[%clk 0:01:15]} 10. Bxe5 {[%clk 0:01:38]}  Qa3 {[%clk 0:01:14]} 11. d5 {[%clk 0:01:34]}  e6 {[%clk 0:01:10]} 12. Bc4 {[%clk 0:01:33]}  Bd6 {[%clk 0:01:05]} 13. Bxg7 {[%clk 0:01:16]}  Rg8 {[%clk 0:01:05]} 14. Qd4 {[%clk 0:01:15]}  Bc5 {[%clk 0:00:50]} 15. Qf6 {[%clk 0:01:08]}  Be7 {[%clk 0:00:50]} 16. Qe5 {[%clk 0:00:33]}  Qc5 {[%clk 0:00:49]} 17. Qd4 {[%clk 0:00:25]}  Qxd4 {[%clk 0:00:44]} 18. Bxd4 {[%clk 0:00:26]}  Rxg2 {[%clk 0:00:44]} 19. O-O-O {[%clk 0:00:24]}  Bd7 {[%clk 0:00:32]} 20. Rdg1 {[%clk 0:00:19]}  Rxg1+ {[%clk 0:00:31]} 21. Rxg1 {[%clk 0:00:20]}  O-O-O {[%clk 0:00:31]} 22. dxe6 {[%clk 0:00:21]}  fxe6 {[%clk 0:00:30]} 23. Rg7 {[%clk 0:00:21]}  Ba3+ {[%clk 0:00:31]} 24. Kb1 {[%clk 0:00:19]}  Rf8 {[%clk 0:00:31]} 25. Bd3 {[%clk 0:00:19]}  e5 {[%clk 0:00:29]} 26. Be3 {[%clk 0:00:18]}  h5 {[%clk 0:00:28]} 27. c4 {[%clk 0:00:17]}  Bc6 {[%clk 0:00:23]} 28. c3 {[%clk 0:00:14]}  e4 {[%clk 0:00:23]} 29. Be2 {[%clk 0:00:15]}  h4 {[%clk 0:00:22]} 30. c5 {[%clk 0:00:14]}  Bd5 {[%clk 0:00:20]} 31. Kc2 {[%clk 0:00:09]}  Bxa2 {[%clk 0:00:19]} 32. c4 {[%clk 0:00:09]}  Rd8 {[%clk 0:00:14]} 33. Rg1 {[%clk 0:00:09]}  b5 {[%clk 0:00:13]} 34. cxb6 {[%clk 0:00:10]}  cxb6 {[%clk 0:00:14]} 35. Ra1 {[%clk 0:00:09]}  Bc5 {[%clk 0:00:11]} 36. Rxa2 {[%clk 0:00:09]}  Rf8 {[%clk 0:00:10]} 37. Bxc5 {[%clk 0:00:09]}  bxc5 {[%clk 0:00:11]} 38. Kd2 {[%clk 0:00:09]}  Rxf2 {[%clk 0:00:11]} 39. Ke3 {[%clk 0:00:10]}  Rf8 {[%clk 0:00:08]} 40. Rxa6 {[%clk 0:00:10]}  Kc7 {[%clk 0:00:07]} 41. Rh6 {[%clk 0:00:11]}  Rd8 {[%clk 0:00:07]} 42. Rxh4 {[%clk 0:00:11]}  Rd6 {[%clk 0:00:07]} 43. Rxe4 {[%clk 0:00:12]}  Rh6 {[%clk 0:00:07]} 44. h4 {[%clk 0:00:12]}  Kd6 {[%clk 0:00:07]} 45. h5 {[%clk 0:00:13]}  Rf6 {[%clk 0:00:06]} 46. Rg4 {[%clk 0:00:13]}  Ke5 {[%clk 0:00:06]} 47. Rg5+ {[%clk 0:00:14]}  Kd6 {[%clk 0:00:07]} 48. Rg6 {[%clk 0:00:14]}  Kc6 {[%clk 0:00:06]} 49. Rxf6+ {[%clk 0:00:14]} 1-0


[Site "https://www.chess.com"]

[Event "Titled Tuesday Blitz August 08 Early 2023"]
[White "MarijaKuznecova"]
[Black "Koshulyan, Egor A."]
[BlackFideId "24237000"]
[WhiteElo "2354"]
[BlackElo "2691"]
[Result "0-1"]
[Round "2"]
[TimeControl "180+1"]
[Date "2023.08.08"]
[WhiteClock "0:00:00"]
[BlackClock "0:00:07"]
[Board "111"]

1. e4 {[%clk 0:03:00]}  c5 {[%clk 0:03:00]} 2. Nf3 {[%clk 0:03:01]}  Nc6 {[%clk 0:02:59]} 3. Nc3 {[%clk 0:03:00]}  Nf6 {[%clk 0:02:58]} 4. d4 {[%clk 0:03:00]}  cxd4 {[%clk 0:02:58]} 5. Nxd4 {[%clk 0:03:01]}  e5 {[%clk 0:02:59]} 6. Ndb5 {[%clk 0:03:01]}  d6 {[%clk 0:03:00]} 7. Bg5 {[%clk 0:03:01]}  a6 {[%clk 0:03:00]} 8. Na3 {[%clk 0:03:01]}  Be6 {[%clk 0:03:00]} 9. Nc4 {[%clk 0:02:56]}  Rb8 {[%clk 0:03:00]} 10. Ne3 {[%clk 0:02:52]}  Be7 {[%clk 0:02:59]} 11. Bxf6 {[%clk 0:02:36]}  Bxf6 {[%clk 0:03:00]} 12. Ned5 {[%clk 0:02:35]}  Bg5 {[%clk 0:03:00]} 13. a4 {[%clk 0:02:29]}  O-O {[%clk 0:03:00]} 14. h4 {[%clk 0:02:28]}  Bh6 {[%clk 0:03:00]} 15. g4 {[%clk 0:02:28]}  Bf4 {[%clk 0:02:58]} 16. Nxf4 {[%clk 0:02:27]}  exf4 {[%clk 0:02:58]} 17. Be2 {[%clk 0:01:58]}  Ne5 {[%clk 0:02:56]} 18. Nd5 {[%clk 0:01:56]}  f3 {[%clk 0:02:43]} 19. Bxf3 {[%clk 0:01:52]}  Bxd5 {[%clk 0:02:43]} 20. exd5 {[%clk 0:01:41]}  Qf6 {[%clk 0:02:43]} 21. Be2 {[%clk 0:01:37]}  Rbe8 {[%clk 0:02:43]} 22. Kf1 {[%clk 0:01:35]}  Ng6 {[%clk 0:02:38]} 23. h5 {[%clk 0:01:26]}  Nf4 {[%clk 0:02:38]} 24. Bf3 {[%clk 0:01:27]}  Qxb2 {[%clk 0:02:34]} 25. Rb1 {[%clk 0:01:22]}  Qc3 {[%clk 0:02:34]} 26. Rxb7 {[%clk 0:01:21]}  Re5 {[%clk 0:02:19]} 27. Rb3 {[%clk 0:01:15]}  Qc4+ {[%clk 0:02:18]} 28. Kg1 {[%clk 0:01:16]}  Rfe8 {[%clk 0:02:06]} 29. Kh2 {[%clk 0:01:12]}  Nxd5 {[%clk 0:01:54]} 30. Rd3 {[%clk 0:01:12]}  Qf4+ {[%clk 0:01:39]} 31. Kg2 {[%clk 0:01:12]}  Nf6 {[%clk 0:01:39]} 32. h6 {[%clk 0:01:05]}  g6 {[%clk 0:01:32]} 33. Rxd6 {[%clk 0:01:03]}  Qxa4 {[%clk 0:00:42]} 34. Rxf6 {[%clk 0:01:00]}  Rg5 {[%clk 0:00:42]} 35. Rd6 {[%clk 0:00:52]}  f5 {[%clk 0:00:33]} 36. Qd5+ {[%clk 0:00:37]}  Kh8 {[%clk 0:00:33]} 37. Qd4+ {[%clk 0:00:37]}  Qxd4 {[%clk 0:00:33]} 38. Rxd4 {[%clk 0:00:38]}  fxg4 {[%clk 0:00:34]} 39. Rxg4 {[%clk 0:00:38]}  Rc5 {[%clk 0:00:34]} 40. c4 {[%clk 0:00:37]}  a5 {[%clk 0:00:33]} 41. Bd5 {[%clk 0:00:37]}  a4 {[%clk 0:00:32]} 42. Ra1 {[%clk 0:00:36]}  Ra5 {[%clk 0:00:27]} 43. Rf4 {[%clk 0:00:36]}  g5 {[%clk 0:00:25]} 44. Rf7 {[%clk 0:00:35]}  g4 {[%clk 0:00:22]} 45. Rb1 {[%clk 0:00:30]}  Ra6 {[%clk 0:00:12]} 46. Ra1 {[%clk 0:00:23]}  a3 {[%clk 0:00:11]} 47. c5 {[%clk 0:00:21]}  g3 {[%clk 0:00:09]} 48. Kxg3 {[%clk 0:00:20]}  Rg6+ {[%clk 0:00:05]} 49. Kh2 {[%clk 0:00:19]}  Rxh6+ {[%clk 0:00:06]} 50. Kg2 {[%clk 0:00:19]}  Rg6+ {[%clk 0:00:06]} 51. Kf1 {[%clk 0:00:19]}  Ra6 {[%clk 0:00:05]} 52. c6 {[%clk 0:00:19]}  Rd8 {[%clk 0:00:05]} 53. Bf3 {[%clk 0:00:18]}  a2 {[%clk 0:00:03]} 54. Kg2 {[%clk 0:00:17]}  Rb8 {[%clk 0:00:03]} 55. Rh1 {[%clk 0:00:16]}  a1=Q {[%clk 0:00:02]} 56. Rxa1 {[%clk 0:00:15]}  Rxa1 {[%clk 0:00:03]} 57. c7 {[%clk 0:00:16]}  Rc8 {[%clk 0:00:04]} 58. Bb7 {[%clk 0:00:16]}  Rg8+ {[%clk 0:00:04]} 59. Kh2 {[%clk 0:00:16]}  Rc1 {[%clk 0:00:05]} 60. Be4 {[%clk 0:00:09]}  Rc8 {[%clk 0:00:04]} 61. Rxh7+ {[%clk 0:00:09]}  Kg8 {[%clk 0:00:04]} 62. Rd7 {[%clk 0:00:05]}  R1xc7 {[%clk 0:00:05]} 63. Rd6 {[%clk 0:00:04]}  Rf8 {[%clk 0:00:02]} 64. Rg6+ {[%clk 0:00:04]}  Kf7 {[%clk 0:00:03]} 65. Kg3 {[%clk 0:00:04]}  Re7 {[%clk 0:00:02]} 66. Bd3 {[%clk 0:00:03]}  Ke8 {[%clk 0:00:03]} 67. f3 {[%clk 0:00:02]}  Re3 {[%clk 0:00:03]} 68. Be4 {[%clk 0:00:03]}  Ra3 {[%clk 0:00:03]} 69. Re6+ {[%clk 0:00:03]}  Kd8 {[%clk 0:00:04]} 70. Rd6+ {[%clk 0:00:03]}  Kc7 {[%clk 0:00:05]} 71. Rg6 {[%clk 0:00:03]}  Re8 {[%clk 0:00:05]} 72. Rg7+ {[%clk 0:00:04]}  Kd6 {[%clk 0:00:06]} 73. Rg6+ {[%clk 0:00:04]}  Kc5 {[%clk 0:00:06]} 74. Kg4 {[%clk 0:00:03]}  Ra4 {[%clk 0:00:06]} 75. Rg5+ {[%clk 0:00:03]}  Kd4 {[%clk 0:00:06]} 76. Rd5+ {[%clk 0:00:03]}  Ke3 {[%clk 0:00:06]} 77. Rg5 {[%clk 0:00:03]}  Ra7 {[%clk 0:00:06]} 78. Rg6 {[%clk 0:00:02]}  Rf8 {[%clk 0:00:06]} 79. Rg5 {[%clk 0:00:03]}  Ra4 {[%clk 0:00:07]} 80. Rg6 {[%clk 0:00:01]}  Rxf3 {[%clk 0:00:07]} 81. Kg5 {[%clk 0:00:00]}  Rxe4 {[%clk 0:00:07]} 0-1


[Site "https://www.chess.com"]

[Event "Titled Tuesday Blitz August 08 Early 2023"]
[White "Seemann, Jakub"]
[Black "Hrescak, Ivana"]
[WhiteFideId "21874697"]
[BlackFideId "14613441"]
[WhiteElo "2671"]
[BlackElo "2218"]
[Result "1-0"]
[Round "2"]
[TimeControl "180+1"]
[Date "2023.08.08"]
[WhiteClock "0:00:59"]
[BlackClock "0:00:42"]
[Board "118"]

1. b3 {[%clk 0:02:55]}  e5 {[%clk 0:02:59]} 2. Bb2 {[%clk 0:02:47]}  Nc6 {[%clk 0:02:59]} 3. e3 {[%clk 0:02:39]}  d5 {[%clk 0:02:59]} 4. Bb5 {[%clk 0:02:38]}  Bd6 {[%clk 0:02:59]} 5. Nf3 {[%clk 0:02:35]}  Qe7 {[%clk 0:02:50]} 6. d4 {[%clk 0:02:32]}  e4 {[%clk 0:02:47]} 7. Ne5 {[%clk 0:02:32]}  Bd7 {[%clk 0:02:45]} 8. Bxc6 {[%clk 0:02:27]}  bxc6 {[%clk 0:02:42]} 9. Nxd7 {[%clk 0:02:27]}  Qxd7 {[%clk 0:02:42]} 10. Ba3 {[%clk 0:02:23]}  Nf6 {[%clk 0:02:33]} 11. Bxd6 {[%clk 0:02:23]}  cxd6 {[%clk 0:02:30]} 12. O-O {[%clk 0:02:23]}  O-O {[%clk 0:02:30]} 13. c4 {[%clk 0:02:21]}  dxc4 {[%clk 0:02:26]} 14. bxc4 {[%clk 0:02:21]}  d5 {[%clk 0:02:26]} 15. Nc3 {[%clk 0:02:19]}  Rab8 {[%clk 0:02:21]} 16. Qa4 {[%clk 0:02:19]}  Rb7 {[%clk 0:02:07]} 17. Qa5 {[%clk 0:02:01]}  Rfb8 {[%clk 0:02:02]} 18. Na4 {[%clk 0:02:01]}  Rb4 {[%clk 0:01:58]} 19. Nc5 {[%clk 0:01:57]}  Qe7 {[%clk 0:01:55]} 20. cxd5 {[%clk 0:01:57]}  cxd5 {[%clk 0:01:54]} 21. Rac1 {[%clk 0:01:54]}  h5 {[%clk 0:01:48]} 22. h3 {[%clk 0:01:49]}  g5 {[%clk 0:01:42]} 23. a3 {[%clk 0:01:35]}  Rb2 {[%clk 0:01:41]} 24. Na6 {[%clk 0:01:30]}  R8b6 {[%clk 0:01:35]} 25. Nb4 {[%clk 0:01:25]}  Qd7 {[%clk 0:01:23]} 26. Rc5 {[%clk 0:01:19]}  Rd6 {[%clk 0:01:14]} 27. Rc7 {[%clk 0:01:16]}  Qf5 {[%clk 0:01:09]} 28. Qxa7 {[%clk 0:01:07]}  Qe6 {[%clk 0:01:00]} 29. Re7 {[%clk 0:01:06]}  Rd7 {[%clk 0:00:49]} 30. Rxe6 {[%clk 0:01:04]}  Rxa7 {[%clk 0:00:49]} 31. Rxf6 {[%clk 0:01:05]}  Rxa3 {[%clk 0:00:49]} 32. Nxd5 {[%clk 0:01:05]}  Kg7 {[%clk 0:00:45]} 33. Rf5 {[%clk 0:01:04]}  Kg6 {[%clk 0:00:45]} 34. g4 {[%clk 0:01:03]}  hxg4 {[%clk 0:00:45]} 35. hxg4 {[%clk 0:01:04]}  Ra8 {[%clk 0:00:44]} 36. Rc1 {[%clk 0:01:01]}  Rh8 {[%clk 0:00:42]} 37. Rc6+ {[%clk 0:01:01]}  Kg7 {[%clk 0:00:42]} 38. Rxg5+ {[%clk 0:01:00]}  Kf8 {[%clk 0:00:42]} 39. Rc8# {[%clk 0:00:59]} 1-0


[Site "https://www.chess.com"]

[Event "Titled Tuesday Blitz August 08 Early 2023"]
[White "Luxama, Jacques Muller"]
[Black "Fus, Jakub"]
[WhiteFideId "11900113"]
[BlackFideId "1193023"]
[WhiteElo "2213"]
[BlackElo "2668"]
[Result "0-1"]
[Round "2"]
[TimeControl "180+1"]
[Date "2023.08.08"]
[WhiteClock "0:00:31"]
[BlackClock "0:00:13"]
[Board "119"]

1. e4 {[%clk 0:02:59]}  c6 {[%clk 0:02:59]} 2. d4 {[%clk 0:02:59]}  d5 {[%clk 0:02:59]} 3. e5 {[%clk 0:02:59]}  Bf5 {[%clk 0:02:59]} 4. g4 {[%clk 0:02:59]}  Be4 {[%clk 0:02:56]} 5. f3 {[%clk 0:02:59]}  Bg6 {[%clk 0:02:56]} 6. e6 {[%clk 0:03:00]}  Qd6 {[%clk 0:02:54]} 7. exf7+ {[%clk 0:02:59]}  Bxf7 {[%clk 0:02:55]} 8. Nc3 {[%clk 0:02:58]}  Nd7 {[%clk 0:02:52]} 9. f4 {[%clk 0:02:58]}  g5 {[%clk 0:02:43]} 10. fxg5 {[%clk 0:02:50]}  e5 {[%clk 0:02:43]} 11. dxe5 {[%clk 0:02:42]}  Nxe5 {[%clk 0:02:44]} 12. Qe2 {[%clk 0:02:28]}  O-O-O {[%clk 0:02:42]} 13. Bf4 {[%clk 0:02:27]}  Nd3+ {[%clk 0:01:38]} 14. Qxd3 {[%clk 0:02:27]}  Qxf4 {[%clk 0:01:39]} 15. Nge2 {[%clk 0:02:26]}  Qxg5 {[%clk 0:01:31]} 16. Qf5+ {[%clk 0:02:20]}  Qxf5 {[%clk 0:01:31]} 17. gxf5 {[%clk 0:02:21]}  Bh6 {[%clk 0:01:24]} 18. Ng3 {[%clk 0:02:06]}  Nf6 {[%clk 0:01:20]} 19. Bd3 {[%clk 0:02:05]}  Rde8+ {[%clk 0:01:20]} 20. Kf1 {[%clk 0:02:03]}  Ng4 {[%clk 0:01:14]} 21. Re1 {[%clk 0:01:55]}  b5 {[%clk 0:01:05]} 22. a3 {[%clk 0:01:45]}  a6 {[%clk 0:01:00]} 23. h3 {[%clk 0:01:25]}  Ne3+ {[%clk 0:00:54]} 24. Kf2 {[%clk 0:01:25]}  c5 {[%clk 0:00:53]} 25. f6 {[%clk 0:01:02]}  Bg6 {[%clk 0:00:31]} 26. Bxg6 {[%clk 0:00:50]}  hxg6 {[%clk 0:00:32]} 27. Re2 {[%clk 0:00:50]}  Rhf8 {[%clk 0:00:30]} 28. Rhe1 {[%clk 0:00:48]}  Rxf6+ {[%clk 0:00:30]} 29. Kg1 {[%clk 0:00:48]}  Rf3 {[%clk 0:00:23]} 30. Nf1 {[%clk 0:00:45]}  d4 {[%clk 0:00:20]} 31. Nxe3 {[%clk 0:00:44]}  Bxe3+ {[%clk 0:00:18]} 32. Kg2 {[%clk 0:00:44]}  Rf5 {[%clk 0:00:13]} 33. Nd1 {[%clk 0:00:43]}  Rg5+ {[%clk 0:00:12]} 34. Kh1 {[%clk 0:00:43]}  Rh8 {[%clk 0:00:12]} 35. Kh2 {[%clk 0:00:42]}  Bf4+ {[%clk 0:00:11]} 36. Kh1 {[%clk 0:00:32]}  Rxh3+ {[%clk 0:00:12]} 37. Rh2 {[%clk 0:00:31]}  Rxh2# {[%clk 0:00:13]} 0-1


[Site "https://www.chess.com"]

[Event "Titled Tuesday Blitz August 08 Early 2023"]
[White "Aaditya Dhingra"]
[Black "Falbo, Sandro"]
[WhiteFideId "25678191"]
[BlackFideId "810444"]
[WhiteElo "2665"]
[BlackElo "2184"]
[Result "1-0"]
[Round "2"]
[TimeControl "180+1"]
[Date "2023.08.08"]
[WhiteClock "0:00:42"]
[BlackClock "0:00:00"]
[Board "121"]

1. c4 {[%clk 0:02:58]}  Nf6 {[%clk 0:02:58]} 2. Nc3 {[%clk 0:02:57]}  g6 {[%clk 0:02:59]} 3. e4 {[%clk 0:02:54]}  e5 {[%clk 0:02:59]} 4. Nf3 {[%clk 0:02:52]}  Nc6 {[%clk 0:02:59]} 5. d4 {[%clk 0:02:50]}  exd4 {[%clk 0:02:57]} 6. Nxd4 {[%clk 0:02:50]}  Bg7 {[%clk 0:02:57]} 7. Be3 {[%clk 0:02:49]}  O-O {[%clk 0:02:57]} 8. Be2 {[%clk 0:02:49]}  Re8 {[%clk 0:02:55]} 9. f3 {[%clk 0:02:44]}  Nxd4 {[%clk 0:02:47]} 10. Bxd4 {[%clk 0:02:43]}  d6 {[%clk 0:02:47]} 11. O-O {[%clk 0:02:42]}  c6 {[%clk 0:02:44]} 12. Re1 {[%clk 0:02:38]}  Be6 {[%clk 0:02:38]} 13. Qd2 {[%clk 0:02:32]}  Qa5 {[%clk 0:02:27]} 14. Rad1 {[%clk 0:02:29]}  Rad8 {[%clk 0:02:27]} 15. Bf1 {[%clk 0:02:25]}  Nh5 {[%clk 0:02:22]} 16. Be3 {[%clk 0:02:14]}  Qb4 {[%clk 0:02:14]} 17. Rc1 {[%clk 0:01:56]}  Be5 {[%clk 0:01:49]} 18. b3 {[%clk 0:01:48]}  Qa5 {[%clk 0:01:35]} 19. Ne2 {[%clk 0:01:45]}  Qxd2 {[%clk 0:01:29]} 20. Bxd2 {[%clk 0:01:45]}  d5 {[%clk 0:01:25]} 21. exd5 {[%clk 0:01:34]}  cxd5 {[%clk 0:01:25]} 22. c5 {[%clk 0:01:24]}  d4 {[%clk 0:01:20]} 23. g4 {[%clk 0:01:20]}  d3 {[%clk 0:01:08]} 24. Nc3 {[%clk 0:01:15]}  Bd4+ {[%clk 0:01:02]} 25. Kg2 {[%clk 0:01:14]}  Ng7 {[%clk 0:00:56]} 26. Nb5 {[%clk 0:01:07]}  Bb2 {[%clk 0:00:27]} 27. Rb1 {[%clk 0:01:05]}  Bf6 {[%clk 0:00:22]} 28. Nd6 {[%clk 0:01:02]}  Re7 {[%clk 0:00:18]} 29. Ne4 {[%clk 0:00:58]}  Bd4 {[%clk 0:00:15]} 30. Bg5 {[%clk 0:00:57]}  Red7 {[%clk 0:00:09]} 31. Bxd8 {[%clk 0:00:56]}  Rxd8 {[%clk 0:00:09]} 32. Rbd1 {[%clk 0:00:51]}  h5 {[%clk 0:00:08]} 33. h3 {[%clk 0:00:45]}  hxg4 {[%clk 0:00:08]} 34. hxg4 {[%clk 0:00:45]}  Be5 {[%clk 0:00:06]} 35. Rxd3 {[%clk 0:00:44]}  Rxd3 {[%clk 0:00:04]} 36. Bxd3 {[%clk 0:00:44]}  Bd4 {[%clk 0:00:03]} 37. Bc4 {[%clk 0:00:43]}  a6 {[%clk 0:00:00]} 38. Rd1 {[%clk 0:00:42]} 1-0


[Site "https://www.chess.com"]